{"text_format":"3","workbook":"xlsx","n_sheets":1,"sheets":["IŠLAIDŲ DUOMENYS IR DIAGRAMA"],"not_rendered":{"charts":1,"defined_names":2},"read":"whole","date_system":"1900"}

{"sheet":"IŠLAIDŲ DUOMENYS IR DIAGRAMA","index":0,"n_rows":16,"n_cols":5,"rows_kept":16}
[null,"IŠLAIDŲ ANALIZĖ – PARETO DIAGRAMA"]
[null,"Pareto diagrama, skirta kaupiamajai metinių išlaidų procentinei daliai visuose išlaidų centruose apskaičiuoti, pateikta langeliuose nuo B2 iki E3."]
[]
[null,"IŠLAIDŲ ANALIZĖ"]
[null,"Išlaidų centras","Metinės išlaidos ","Bendrosios sumos procentinė dalis","Kaupiamasis procentas"]
[null,"Dalys ir medžiagos",{"v":1325000,"d":"1,325,000.00 EUR"},{"$f":"IFERROR(Duomenys[[#This Row],[Metinės išlaidos ]]/SUM(Duomenys[[Metinės išlaidos ]]), \"\")","v":{"v":0.3117280319962357,"d":"31.17%"}},{"$f":"IFERROR(SUM(INDEX(Duomenys[Bendrosios sumos procentinė dalis],1):Duomenys[[#This Row],[Bendrosios sumos procentinė dalis]]), \"\")","v":{"v":0.3117280319962357,"d":"31.17%"}}]
[null,"Gamybos įranga",{"v":900500,"d":"900,500.00 EUR"},{"$f":"IFERROR(Duomenys[[#This Row],[Metinės išlaidos ]]/SUM(Duomenys[[Metinės išlaidos ]]), \"\")","v":{"v":0.21185742853781908,"d":"21.19%"}},{"$f":"IFERROR(SUM(INDEX(Duomenys[Bendrosios sumos procentinė dalis],1):Duomenys[[#This Row],[Bendrosios sumos procentinė dalis]]), \"\")","v":{"v":0.5235854605340549,"d":"52.36%"}}]
[null,"Atlyginimai",{"v":575000,"d":"575,000.00 EUR"},{"$f":"IFERROR(Duomenys[[#This Row],[Metinės išlaidos ]]/SUM(Duomenys[[Metinės išlaidos ]]), \"\")","v":{"v":0.13527820256440418,"d":"13.53%"}},{"$f":"IFERROR(SUM(INDEX(Duomenys[Bendrosios sumos procentinė dalis],1):Duomenys[[#This Row],[Bendrosios sumos procentinė dalis]]), \"\")","v":{"v":0.658863663098459,"d":"65.89%"}}]
[null,"Priežiūra",{"v":395000,"d":"395,000.00 EUR"},{"$f":"IFERROR(Duomenys[[#This Row],[Metinės išlaidos ]]/SUM(Duomenys[[Metinės išlaidos ]]), \"\")","v":{"v":0.09293024350076462,"d":"9.29%"}},{"$f":"IFERROR(SUM(INDEX(Duomenys[Bendrosios sumos procentinė dalis],1):Duomenys[[#This Row],[Bendrosios sumos procentinė dalis]]), \"\")","v":{"v":0.7517939065992236,"d":"75.18%"}}]
[null,"Biuro nuoma",{"v":295000,"d":"295,000.00 EUR"},{"$f":"IFERROR(Duomenys[[#This Row],[Metinės išlaidos ]]/SUM(Duomenys[[Metinės išlaidos ]]), \"\")","v":{"v":0.06940359957652041,"d":"6.94%"}},{"$f":"IFERROR(SUM(INDEX(Duomenys[Bendrosios sumos procentinė dalis],1):Duomenys[[#This Row],[Bendrosios sumos procentinė dalis]]), \"\")","v":{"v":0.821197506175744,"d":"82.12%"}}]
[null,"Sandėlio nuoma",{"v":250000,"d":"250,000.00 EUR"},{"$f":"IFERROR(Duomenys[[#This Row],[Metinės išlaidos ]]/SUM(Duomenys[[Metinės išlaidos ]]), \"\")","v":{"v":0.058816609810610515,"d":"5.88%"}},{"$f":"IFERROR(SUM(INDEX(Duomenys[Bendrosios sumos procentinė dalis],1):Duomenys[[#This Row],[Bendrosios sumos procentinė dalis]]), \"\")","v":{"v":0.8800141159863546,"d":"88.00%"}}]
[null,"Draudimas",{"v":180000,"d":"180,000.00 EUR"},{"$f":"IFERROR(Duomenys[[#This Row],[Metinės išlaidos ]]/SUM(Duomenys[[Metinės išlaidos ]]), \"\")","v":{"v":0.04234795906363957,"d":"4.23%"}},{"$f":"IFERROR(SUM(INDEX(Duomenys[Bendrosios sumos procentinė dalis],1):Duomenys[[#This Row],[Bendrosios sumos procentinė dalis]]), \"\")","v":{"v":0.9223620750499941,"d":"92.24%"}}]
[null,"Išmokos ir pensijos",{"v":130000,"d":"130,000.00 EUR"},{"$f":"IFERROR(Duomenys[[#This Row],[Metinės išlaidos ]]/SUM(Duomenys[[Metinės išlaidos ]]), \"\")","v":{"v":0.03058463710151747,"d":"3.06%"}},{"$f":"IFERROR(SUM(INDEX(Duomenys[Bendrosios sumos procentinė dalis],1):Duomenys[[#This Row],[Bendrosios sumos procentinė dalis]]), \"\")","v":{"v":0.9529467121515116,"d":"95.29%"}}]
[null,"Transporto priemonės",{"v":125000,"d":"125,000.00 EUR"},{"$f":"IFERROR(Duomenys[[#This Row],[Metinės išlaidos ]]/SUM(Duomenys[[Metinės išlaidos ]]), \"\")","v":{"v":0.029408304905305258,"d":"2.94%"}},{"$f":"IFERROR(SUM(INDEX(Duomenys[Bendrosios sumos procentinė dalis],1):Duomenys[[#This Row],[Bendrosios sumos procentinė dalis]]), \"\")","v":{"v":0.9823550170568168,"d":"98.24%"}}]
[null,"Tyrimas",{"v":75000,"d":"75,000.00 EUR"},{"$f":"IFERROR(Duomenys[[#This Row],[Metinės išlaidos ]]/SUM(Duomenys[[Metinės išlaidos ]]), \"\")","v":{"v":0.017644982943183157,"d":"1.76%"}},{"$f":"IFERROR(SUM(INDEX(Duomenys[Bendrosios sumos procentinė dalis],1):Duomenys[[#This Row],[Bendrosios sumos procentinė dalis]]), \"\")","v":{"v":1,"d":"100.00%"}}]
[null,"Suma",{"$f":"SUBTOTAL(109,Duomenys[[Metinės išlaidos ]])","v":{"v":4250500,"d":"4,250,500.00 EUR"}},{"$f":"SUBTOTAL(109,Duomenys[Bendrosios sumos procentinė dalis])","v":{"v":1,"d":"100.00%"}}]